bitfinex/quotes_ETHUSD_20250629
["timestamp","ask_amount","ask_price","bid_price","bid_amount"]
[1751156724308,5.65233372,2438.4,2438.3,6.605]
[1751156724730,8.07524261,2438.5,2438.3,7.74157678]
[1751156724893,8.07524261,2438.5,2438.4,2.87062006]
[1751156725079,8.07524261,2438.5,2438.4,3.42062006]
[1751156725286,8.07524261,2438.8,2438.5,0.55]
[1751156725485,8.07524261,2438.8,2438.7,2.87038176]
[1751156726588,8.07524261,2438.8,2438.7,3.42038176]
[1751156726812,8.07524261,2438.8,2438.7,4.86240884]
[1751156728417,10.0,2439.3,2438.7,4.86240884]
[1751156728418,8.07524261,2439.0,2438.9,2.87014637]
[1751156728624,8.07524261,2439.0,2438.9,9.47514637]
[1751156728927,8.07524261,2439.0,2438.9,9.67994637]
[1751156729304,8.07524261,2439.0,2438.9,10.22994637]
[1751156729506,8.07524261,2439.0,2438.9,12.45386127]
[1751156737537,0.001,2439.4,2439.0,2.8700287]
[1751156737747,8.07524261,2439.1,2439.0,3.4200287]
[1751156737906,8.07524261,2439.1,2439.0,10.0240287]
[1751156738107,8.07524261,2439.1,2439.0,10.2288287]
[1751156738338,8.07524261,2439.1,2439.0,11.76111528]
[1751156743157,8.07524261,2439.3,2439.0,11.76111528]
[1751156743363,8.07524261,2439.3,2439.2,4.23939337]
[1751156743529,0.001,2439.4,2439.3,3.41967572]
[1751156755392,0.001,2439.4,2439.3,2.86967572]
[1751156755694,0.001,2439.4,2439.3,10.02267572]
[1751156761611,8.06432261,2439.5,2439.3,10.02267572]
[1751156761813,8.07524261,2439.4,2439.3,10.02267572]
[1751156762192,8.07524261,2439.4,2439.3,10.22747572]
[1751156767523,8.07524261,2439.4,2439.3,11.70560003]
[1751156768019,8.07524261,2439.4,2439.3,12.52400003]
[1751156772039,0.001,2439.6,2439.3,12.52400003]
[1751156772241,8.07624261,2439.6,2439.5,3.41944045]
[1751156772428,8.07624261,2439.6,2439.5,11.82057017]
[1751156776343,0.001,2439.6,2439.5,12.57587017]
[1751156777450,8.02624261,2439.9,2439.8,3.41908763]
[1751156777630,8.02624261,2439.9,2439.8,10.02008763]
[1751156777817,8.02624261,2439.9,2439.8,10.22488763]
[1751156778170,8.02624261,2439.9,2439.8,11.41577639]
[1751156778350,8.02624261,2439.9,2439.8,8.54668876]
[1751156778550,8.02624261,2439.9,2439.8,11.41577639]
[1751156779333,8.02624261,2439.9,2439.8,8.54668876]
[1751156779747,8.02624261,2439.9,2439.8,1.39568876]
[1751156779947,8.02624261,2439.9,2439.8,6.601]
[1751156779948,8.81594261,2439.9,2439.8,6.601]
[1751156782255,8.81594261,2439.9,2439.7,6.8058]
[1751156785255,8.81594261,2439.9,2439.7,9.6750038]
[1751156785637,8.02624261,2439.9,2439.7,10.92944777]
[1751156786329,8.02624261,2439.9,2439.7,8.06024397]
[1751156786554,8.02624261,2439.9,2439.8,2.86908763]
[1751156788577,8.02624261,2439.9,2439.8,3.41908763]
[1751156792372,8.02624261,2439.9,2439.8,4.24388763]
[1751156793670,0.001,2440.0,2439.9,2.86897003]
[1751156793838,0.001,2440.0,2439.9,9.46997003]
[1751156794037,0.001,2440.0,2439.9,6.601]
[1751156794844,8.07624261,2440.0,2439.9,6.601]
[1751156795064,8.07624261,2440.0,2439.9,9.46997003]
[1751156795544,8.07624261,2440.0,2439.9,6.601]
[1751156795988,8.07624261,2440.0,2439.9,9.46997003]
[1751156796644,8.07624261,2440.0,2439.9,9.67477003]
[1751156796878,8.07624261,2440.0,2439.9,6.8058]
[1751156797377,8.07624261,2440.0,2439.9,9.67477003]
[1751156798795,0.001,2440.1,2439.9,9.67477003]
[1751156798796,0.001,2440.1,2440.0,3.41885245]
[1751156798943,0.001,2440.1,2440.0,14.18825245]
[1751156805598,0.001,2440.1,2440.0,22.47125245]
[1751156806165,0.001,2440.1,2440.0,21.70085245]
[1751156809904,0.001,2440.1,2440.0,3.41885245]
[1751156810079,0.001,2440.1,2440.0,11.70085245]
[1751156810764,0.001,2440.1,2440.0,13.39699894]
[1751156811996,0.001,2440.1,2440.0,5.11499894]
[1751156812198,0.8327,2440.1,2440.0,6.599]
[1751156812779,0.8327,2440.1,2439.9,3.07369941]
[1751156812995,8.07524261,2440.0,2439.9,9.67269941]
[1751156813206,8.07524261,2440.0,2439.9,3.07369941]
[1751156813398,8.07524261,2440.0,2439.9,9.67269941]
[1751156817715,8.07524261,2440.0,2439.9,0.2048]
[1751156817889,8.07524261,2440.0,2439.9,6.8038]
[1751156819815,8.07624261,2440.1,2440.0,2.86885245]
[1751156822423,8.07624261,2440.1,2439.9,10.80829496]
[1751156823932,8.07624261,2440.1,2440.0,2.86885245]
[1751156824685,8.07624261,2440.1,2439.9,10.80829476]
[1751156827322,8.07624261,2440.1,2440.0,2.86885245]
[1751156829722,0.787,2440.0,2439.9,0.2048]
[1751156830018,0.787,2440.0,2439.8,0.2048]
[1751156830187,8.07524261,2439.9,2439.8,0.2048]
[1751156830384,8.07524261,2439.9,2439.8,6.8038]
[1751156831424,8.86224261,2439.9,2439.6,2.86924865]
[1751156831609,8.07524261,2439.7,2439.6,3.07404865]
[1751156833121,8.07524261,2439.7,2439.6,4.32829739]
[1751156833324,8.07524261,2439.7,2439.6,4.87829739]
[1751156833525,8.07524261,2439.9,2439.8,2.86897967]
[1751156833997,8.07524261,2439.9,2439.8,3.07377967]
[1751156840330,8.07524261,2439.9,2439.8,0.2048]
[1751156840548,8.07524261,2439.9,2439.8,3.07388763]
[1751156850429,8.07524261,2439.9,2439.8,0.2048]
[1751156851669,8.07524261,2439.9,2439.4,0.2048]
[1751156851670,0.8329,2439.7,2439.4,0.2048]
[1751156851870,0.8329,2439.4,2439.0,2.87196753]
[1751156852167,8.07524261,2439.1,2439.0,3.07676753]
[1751156852340,8.07524261,2439.1,2439.0,0.2068]
[1751156852673,8.07524261,2439.1,2439.0,9.6848287]
[1751156852966,8.07524261,2439.1,2439.0,12.09929594]
[1751156858182,8.07524261,2439.1,2439.0,12.64929594]
[1751156858678,8.07524261,2439.3,2439.1,4.20491103]
[1751156858879,8.07524261,2439.3,2439.2,6.611]
[1751156859081,8.07524261,2439.3,2439.2,7.7158]
[1751156859286,8.07524261,2439.3,2439.2,11.9643112]
[1751156861287,8.07524261,2439.3,2439.2,12.5143112]
[1751156866055,0.8075,2439.8,2439.6,2.8692786]
[1751156866378,8.07524261,2439.7,2439.6,2.8692786]
[1751156867548,8.07524261,2439.7,2439.6,3.4192786]
[1751156867785,8.07524261,2439.7,2439.6,3.6240786]
[1751156876968,8.07524261,2439.9,2439.8,3.41908763]
[1751156877264,8.07524261,2439.9,2439.8,10.02508763]
[1751156877477,8.07524261,2439.9,2439.8,10.22988763]
[1751156881878,8.07524261,2439.9,2439.8,11.12988763]
[1751156882081,8.07524261,2439.9,2439.8,12.74569432]
[1751156890198,0.001,2440.1,2440.0,2.86885245]
[1751156890408,8.07624261,2440.1,2440.0,10.06985245]
[1751156891131,8.07624261,2440.1,2440.0,6.652]
[1751156891919,8.07624261,2440.1,2440.0,9.52085245]
[1751156894836,8.07624261,2440.1,2440.0,10.07085245]
[1751156895144,8.07624261,2440.1,2440.0,11.69521322]
[1751156896238,8.07624261,2440.1,2439.5,0.8018]
[1751156896239,8.90314261,2440.1,2439.5,0.8018]
[1751156896418,0.8279,2440.1,2439.7,2.8691366]
[1751156896617,0.8279,2440.1,2439.8,9.51907086]
[1751156896815,0.001,2440.1,2440.0,2.86885245]
[1751156897018,0.001,2440.1,2440.0,10.06985245]
[1751156897708,8.07624261,2440.1,2440.0,10.06985245]
[1751156898541,8.07624261,2440.1,2440.0,11.78285245]
[1751156900320,8.07624261,2440.1,2440.0,11.98765245]
[1751156900521,8.07624261,2440.1,2440.0,13.67736683]
[1751156914635,0.001,2440.1,2440.0,13.67736683]
[1751156914832,0.001,2440.4,2440.0,13.67736683]
[1751156914833,0.001,2440.4,2440.3,2.86849977]
[1751156915032,0.001,2440.4,2440.3,10.08949977]
[1751156915271,0.001,2440.4,2440.3,10.90719977]
[1751156915566,0.001,2440.4,2440.3,12.90699613]
[1751156915737,0.001,2440.4,2440.3,22.90699613]
[1751156916147,7.97624261,2440.8,2440.7,2.86802966]
[1751156916473,7.97624261,2440.8,2440.7,9.54802966]
[1751156916671,7.97624261,2440.8,2440.7,9.75282966]
[1751156916859,8.75934261,2440.8,2440.7,10.30282966]
[1751156917373,8.75934261,2440.8,2440.7,6.8848]
[1751156918074,0.7831,2440.7,2440.4,0.2048]
[1751156918243,8.86824261,2440.5,2440.4,6.8818]
[1751156919177,8.86824261,2440.5,2440.4,0.2048]
[1751156920497,8.07524261,2440.5,2439.9,9.833]
[1751156920687,8.07524261,2440.0,2439.9,11.546]
[1751156920889,8.07524261,2440.0,2439.9,21.09091377]
[1751156921200,8.07524261,2440.0,2439.9,21.29571377]
[1751156922397,8.07524261,2440.0,2439.9,18.4268]
[1751156923803,8.07524261,2440.0,2439.9,21.29577003]
[1751156924480,8.07524261,2440.0,2439.9,11.46277003]
[1751156924684,8.07524261,2440.0,2439.9,8.5938]
[1751156925190,8.07524261,2440.0,2439.9,11.46277003]
[1751156931107,8.07524261,2440.0,2439.9,12.01277003]
[1751156931309,8.07524261,2440.0,2439.9,14.21645452]
[1751156931902,0.8143,2440.5,2440.2,2.86850488]
[1751156932076,0.8143,2440.5,2440.3,9.5364152]
[1751156932287,8.07524261,2440.4,2440.3,9.5364152]
[1751156933192,8.07524261,2440.4,2440.3,6.668]
[1751156933391,8.07524261,2440.4,2440.3,9.53649977]
[1751156936334,8.07524261,2440.4,2440.3,6.668]
[1751156941536,8.07524261,2440.4,2440.1,9.52972668]
[1751156941739,8.07524261,2440.2,2440.1,9.52972668]
[1751156942107,0.788,2440.1,2440.0,6.8638]
[1751156942312,0.788,2440.1,2440.0,0.2048]
[1751156942638,0.788,2440.1,2440.0,9.52785245]
[1751156942834,0.788,2440.1,2440.0,6.659]
[1751156943226,0.788,2440.1,2440.0,9.52785245]
[1751156943744,0.788,2440.1,2440.0,6.659]
[1751156944317,0.788,2440.1,2440.0,9.52785245]
[1751156944642,8.07524261,2440.2,2440.0,9.52785245]
[1751156946763,8.07524261,2440.2,2440.0,6.659]
[1751156947037,8.07524261,2440.2,2440.0,9.52780347]
[1751156947636,8.07524261,2440.2,2440.0,6.659]
[1751156950661,10.94388106,2440.2,2439.9,6.655]
[1751156950825,8.07524261,2440.0,2439.9,6.655]
[1751156951229,8.07524261,2440.0,2439.8,0.2048]
[1751156951432,8.88184261,2440.0,2439.8,6.8598]
[1751156951862,8.88184261,2440.0,2439.8,0.2048]
[1751156952163,8.88184261,2440.0,2439.8,6.8598]
[1751156952880,8.88184261,2440.0,2439.8,6.654]
[1751156954963,11.75070847,2440.0,2439.6,4.80007935]
[1751156955175,3.67546586,2440.0,2439.7,6.652]
[1751156955539,0.8066,2440.0,2439.6,11.45212224]
[1751156955969,0.8066,2440.0,2439.8,0.9]
[1751156956377,10.94421264,2439.9,2439.8,0.9]
[1751156956774,8.07524261,2439.9,2439.8,0.9]
[1751156957383,8.07524261,2439.9,2439.6,8.5818]
[1751156957589,8.07524261,2439.7,2439.6,8.5818]
[1751156958486,8.07524261,2439.7,2439.6,0.2048]
[1751156958685,8.07524261,2439.7,2439.6,6.8548]
[1751156958885,8.07524261,2439.7,2439.6,0.2048]
[1751156959054,8.07524261,2439.7,2439.6,3.07412283]
[1751156966104,8.07524261,2439.7,2439.6,0.2048]
[1751156966282,8.07524261,2439.7,2439.6,3.07412283]
[1751156971116,8.07524261,2439.7,2439.6,0.2048]
[1751156971117,8.45252634,2439.7,2439.6,0.2048]
[1751156971281,2.86947575,2439.5,2439.0,0.002]
[1751156971476,8.07524261,2439.1,2439.0,0.002]
[1751156975005,10.94515364,2439.1,2439.0,0.002]
[1751156977174,18.07524261,2439.1,2438.6,0.002]
[1751156977378,0.7667,2438.7,2438.3,0.002]
[1751156977580,8.07524261,2438.4,2438.3,0.002]
[1751156979711,8.07524261,2438.4,2438.3,2.87285264]
[1751156979924,8.07524261,2438.4,2438.3,0.002]
[1751156981429,8.07524261,2438.4,2438.3,0.2068]
[1751156982227,8.07524261,2438.4,2438.3,0.002]
[1751156990740,10.94597751,2438.4,2438.3,0.002]
[1751156991557,8.07524261,2438.4,2438.3,0.002]
[1751156991954,10.94597751,2438.4,2438.3,0.002]
[1751156992167,8.07524261,2438.4,2438.3,0.002]
[1751156992861,10.94597751,2438.4,2438.3,0.002]
[1751156994357,8.07524261,2438.4,2438.3,0.002]
[1751157005505,8.07524261,2438.4,2438.0,0.002]
[1751157005506,2.87108814,2438.1,2438.0,0.002]
[1751157005658,0.8154,2438.0,2437.5,1.739]
[1751157005974,8.07524261,2437.6,2437.5,1.9438]
[1751157006187,8.07524261,2437.6,2437.5,0.2048]
[1751157007785,8.07524261,2437.6,2437.5,3.07659487]
[1751157010487,0.8154,2438.2,2437.7,3.68465516]
[1751157010488,8.07524261,2437.8,2437.7,3.68465516]
[1751157011150,8.07524261,2437.8,2437.7,3.88945516]
[1751157014014,0.2048,2438.0,2437.8,2.87138076]
[1751157014215,8.07524261,2437.9,2437.8,2.87138076]
[1751157015409,8.07524261,2437.9,2437.7,3.88951208]
[1751157015580,8.07524261,2437.9,2437.7,0.2048]
[1751157016007,11.71151889,2437.9,2437.5,0.2048]
[1751157016202,8.07524261,2437.6,2437.5,0.2048]
[1751157016580,8.07524261,2437.6,2437.5,3.07659487]
[1751157020084,8.07524261,2437.8,2437.7,2.87155925]
[1751157020680,8.07524261,2438.0,2437.9,2.87132368]
[1751157021093,8.07524261,2438.0,2437.9,3.07612368]
[1751157022914,8.07524261,2438.2,2438.1,2.87108814]
[1751157023305,8.07524261,2438.2,2438.1,3.07588814]
[1751157025532,8.07524261,2438.2,2438.1,3.90808814]
[1751157026599,8.07524261,2438.4,2438.3,2.87085264]
[1751157027786,8.07524261,2438.4,2438.3,3.70305264]
[1751157028017,8.07524261,2438.4,2438.3,3.90785264]
[1751157029695,8.07524261,2438.4,2438.3,4.45785264]
[1751157030090,8.07524261,2438.4,2438.3,0.2048]
[1751157030294,8.07524261,2438.4,2437.9,3.42122945]
[1751157030295,8.07524261,2438.4,2438.0,3.42113424]
[1751157030604,8.07524261,2438.2,2438.1,0.2048]
[1751157033524,8.07524261,2438.2,2438.1,3.07588814]
[1751157035230,0.2048,2438.5,2438.1,0.2048]
[1751157035401,0.8318,2438.6,2438.4,2.8707349]
[1751157035402,8.07524261,2438.6,2438.4,2.8707349]
[1751157035600,8.07524261,2438.6,2438.5,3.07530877]
[1751157035930,8.07524261,2438.6,2438.5,0.2048]
[1751157044744,8.07524261,2438.6,2438.2,2.87090382]
[1751157044979,8.07524261,2438.4,2438.2,3.07570382]
[1751157052232,8.07524261,2438.4,2438.3,2.87085264]
[1751157054846,0.2048,2438.6,2438.3,0.55]
[1751157055060,0.8128,2439.0,2438.6,2.87048476]
[1751157055361,8.07524261,2438.7,2438.6,2.87048476]
[1751157060338,8.07524261,2438.7,2438.6,3.65288476]
[1751157060660,8.07524261,2438.7,2438.6,4.20288476]
[1751157066463,8.07524261,2438.9,2438.7,3.42038176]
[1751157066670,8.07524261,2438.9,2438.7,4.1482095]
[1751157066879,8.07524261,2438.9,2438.8,0.7548]
[1751157067168,8.07524261,2438.9,2438.8,3.62506406]
[1751157074273,8.07524261,2438.9,2438.8,0.2048]
[1751157074761,8.07524261,2438.9,2438.7,2.8703703]
[1751157075061,8.07524261,2438.9,2438.7,3.0751703]
[1751157075242,8.07524261,2438.9,2438.7,0.2048]
[1751157075456,0.7938,2438.8,2438.7,0.2048]
[1751157079471,8.07524261,2438.9,2438.7,0.2048]
[1751157079972,8.07524261,2438.9,2438.8,2.87026406]
[1751157082395,8.07524261,2438.9,2438.7,3.07511285]
[1751157082757,8.07524261,2438.9,2438.8,2.87026406]
[1751157084700,8.07524261,2438.9,2438.8,3.07506406]
[1751157084883,8.07524261,2438.9,2438.8,3.62506406]
[1751157086506,8.07524261,2438.9,2438.8,4.35724175]
[1751157087091,0.001,2439.0,2438.9,3.42014637]
[1751157089421,0.001,2439.0,2438.9,4.24654637]
[1751157089914,0.001,2439.0,2438.9,5.97354637]
[1751157090115,0.001,2439.0,2438.9,15.97354637]
[1751157090308,0.001,2439.0,2438.9,18.90545647]
[1751157097181,0.001,2439.0,2438.9,25.56545647]
[1751157099157,0.001,2439.0,2438.9,25.8682325]
[1751157100698,0.001,2439.0,2438.9,45.7966315]
[1751157103309,0.001,2439.0,2438.9,55.8682325]
[1751157103522,0.001,2439.2,2439.1,32.91043703]
[1751157103720,0.001,2439.2,2439.1,51.25517427]
[1751157103932,0.001,2439.2,2439.1,51.45997427]
[1751157104236,0.001,2439.2,2439.1,47.17334227]
[1751157104433,0.001,2439.2,2439.1,25.08933527]
[1751157105728,0.001,2439.2,2439.1,18.43533527]
[1751157105900,0.001,2439.2,2439.1,26.81333527]
[1751157108700,0.001,2439.2,2439.1,31.46333527]
[1751157111227,0.001,2439.2,2439.1,24.81133527]
[1751157111728,0.001,2439.2,2439.1,31.45833527]
[1751157114718,0.001,2439.2,2439.1,26.80833527]
[1751157121946,0.001,2439.2,2439.1,20.16133527]
[1751157122258,0.001,2439.2,2439.1,16.00503527]
[1751157122562,0.001,2439.2,2439.1,26.00503527]
[1751157132872,0.001,2439.2,2439.1,26.83303527]
[1751157138373,0.001,2439.2,2439.1,31.48303527]
[1751157142074,0.001,2439.2,2439.1,44.43493527]
[1751157145477,0.001,2439.2,2439.1,37.79393527]
[1751157145682,0.001,2439.2,2439.1,31.48003527]
[1751157146446,0.001,2439.2,2439.1,41.31303527]
[1751157146857,0.001,2439.2,2439.1,60.41214327]
[1751157147278,0.001,2439.2,2439.1,50.68192727]
[1751157147447,0.001,2439.2,2439.1,47.52315527]
[1751157147649,0.001,2439.2,2439.1,44.28314527]
[1751157148345,0.001,2439.2,2439.1,52.53862727]
[1751157149645,0.001,2439.2,2439.1,50.59072727]
[1751157149845,0.001,2439.2,2439.1,44.20384527]
[1751157150885,0.001,2439.2,2439.1,41.31303527]
[1751157152101,0.001,2439.2,2439.1,41.29103527]
[1751157155196,0.7616,2441.3,2440.8,13.41791215]
[1751157155369,0.7616,2441.3,2440.8,21.76091215]
[1751157155564,0.7616,2441.3,2440.8,24.39587097]
[1751157160129,0.7616,2441.3,2440.8,24.39487097]
[1751157161311,0.7616,2441.3,2440.8,25.29487097]
[1751157165023,0.7616,2441.3,2440.8,25.49967097]
[1751157173119,0.7616,2441.3,2440.8,17.15767097]
[1751157173434,0.7616,2441.3,2440.8,25.49567097]
[1751157182053,0.001,2441.9,2441.8,2.86673765]
[1751157182219,0.001,2441.9,2441.8,11.20373765]
[1751157182419,0.001,2441.9,2441.8,11.40773765]
[1751157183443,0.001,2441.9,2441.8,0.204]
[1751157183645,0.001,2441.9,2441.8,6.633]
[1751157184854,0.001,2441.9,2441.7,0.204]
[1751157185148,0.7828,2441.9,2441.8,6.633]
[1751157186210,8.85804261,2441.9,2441.8,6.633]
[1751157188115,0.7686,2441.8,2441.7,0.204]
[1751157188650,0.7686,2441.8,2441.7,6.836]
[1751157193453,0.7686,2441.8,2441.7,0.204]
[1751157193750,0.7686,2441.8,2441.7,6.836]
[1751157194340,0.7686,2441.8,2441.7,0.204]
[1751157194542,0.7686,2441.8,2441.7,6.836]
[1751157198956,0.7686,2441.8,2441.7,0.204]
[1751157199149,0.7686,2441.8,2441.7,6.632]
[1751157199847,0.7686,2441.8,2441.5,0.204]
[1751157200165,0.7686,2441.8,2441.7,6.632]
[1751157200652,0.7686,2441.8,2441.5,0.204]
[1751157200829,3.63539581,2441.8,2441.6,6.632]
[1751157201226,8.07524261,2441.7,2441.6,6.632]
[1751157201949,8.07524261,2441.7,2441.5,0.204]
[1751157202150,8.07524261,2441.7,2441.6,6.632]
[1751157202845,8.07524261,2441.7,2441.5,0.204]
[1751157203243,3.66992169,2441.6,2441.4,1.703]
[1751157203543,10.94233251,2441.5,2441.4,1.703]
[1751157203751,10.94233251,2441.5,2441.4,8.335]
[1751157203952,8.07524261,2441.5,2441.4,9.235]
[1751157205050,10.94233251,2441.5,2441.4,9.235]
[1751157206465,10.94233251,2441.5,2441.4,8.335]
[1751157210095,10.94233251,2441.5,2441.3,0.2048]
[1751157210397,10.94233251,2441.5,2441.0,6.632]
[1751157210398,2.86752469,2441.2,2441.0,6.632]
[1751157210691,8.07524261,2441.1,2441.0,6.632]
[1751157212586,8.07524261,2441.1,2440.9,0.2048]
[1751157212886,8.07524261,2441.1,2441.0,6.632]
[1751157213095,3.62187718,2441.0,2440.9,0.2048]
[1751157213269,2.86786705,2440.9,2440.6,0.2048]
[1751157213595,8.07524261,2440.7,2440.6,6.8368]
[1751157214391,8.07524261,2440.7,2440.6,7.3868]
[1751157216152,8.07524261,2440.7,2440.6,0.7548]
[1751157216352,8.07524261,2440.7,2440.6,7.3868]
[1751157218893,8.07524261,2440.7,2440.6,10.25494717]
[1751157219260,8.07524261,2440.7,2440.6,7.3868]
[1751157220351,8.07524261,2440.7,2440.6,10.25494717]
[1751157220936,8.07524261,2440.7,2440.6,7.3868]
[1751157221109,8.07524261,2440.7,2440.6,10.25494717]
[1751157224356,8.07524261,2441.0,2440.9,0.55]
[1751157224516,8.07524261,2441.0,2440.9,7.3878]
[1751157225273,8.07524261,2441.0,2440.9,10.25559466]
[1751157227267,10.7849,2441.4,2441.0,2.86765171]
[1751157227463,8.07524261,2441.0,2440.9,10.25557483]
[1751157227625,8.07524261,2441.1,2441.0,3.41761187]
[1751157228047,8.07524261,2441.1,2441.0,3.62241187]
[1751157236373,0.7849,2441.4,2441.0,0.7548]
[1751157236552,0.7849,2441.4,2441.2,2.86735546]
[1751157236755,0.7849,2441.4,2441.3,6.632]
[1751157237586,0.204,2441.6,2441.3,6.632]
[1751157237749,8.07524261,2441.4,2441.3,6.632]
[1751157243190,8.07524261,2441.4,2441.2,3.07222749]
[1751157244097,8.07524261,2441.4,2441.2,0.2048]
[1751157244296,0.7555,2441.3,2440.4,9.833]
[1751157244586,3.82769206,2441.3,2440.9,0.2048]
[1751157244790,3.82769206,2441.3,2441.0,6.631]
[1751157245501,2.86765348,2441.1,2440.7,0.55]
[1751157245791,8.07524261,2440.8,2440.7,0.2048]
[1751157245987,8.07524261,2440.8,2440.7,7.3858]
[1751157246284,8.07524261,2440.8,2440.7,10.25382966]
[1751157246489,8.07524261,2440.8,2440.7,11.73652504]
[1751157246989,8.07524261,2441.2,2441.0,0.55]
[1751157247198,8.07524261,2441.2,2441.1,2.8675597]
[1751157248483,8.07524261,2441.2,2441.0,9.7034108]
[1751157249566,8.07524261,2441.2,2441.0,0.2048]
[1751157249884,0.8225,2441.1,2440.9,0.2048]
[1751157250066,8.07524261,2441.0,2440.9,0.2048]
[1751157250582,8.07524261,2441.0,2440.8,6.631]
[1751157250583,10.94291979,2441.0,2440.8,6.631]
[1751157252290,10.94291979,2441.0,2440.7,1.703]
[1751157252291,10.94297696,2441.0,2440.7,1.703]
[1751157252455,8.07524261,2440.8,2440.7,1.703]
[1751157254791,8.07524261,2440.8,2440.7,4.57102966]
[1751157258394,8.07524261,2440.8,2440.7,2.86802966]
[1751157265990,8.07524261,2440.8,2440.6,9.70389699]
[1751157267208,8.07524261,2440.8,2440.5,0.002]
[1751157267209,3.68895274,2440.7,2440.5,0.002]
[1751157267509,8.07524261,2440.6,2440.5,0.002]
[1751157276393,10.8225,2440.9,2440.5,2.87026469]
[1751157276750,8.07524261,2440.6,2440.5,3.42026469]
[1751157278854,8.07524261,2440.6,2440.5,3.62506469]
[1751157280454,8.07524261,2440.6,2440.5,4.35594898]
[1751157285342,8.07524261,2440.6,2440.5,3.62506469]
[1751157290642,8.07524261,2440.6,2440.5,0.7568]
[1751157299481,8.07524261,2440.6,2440.5,0.2068]
[1751157299647,8.07524261,2440.6,2440.5,0.002]
[1751157306596,8.07524261,2440.6,2440.5,3.42026469]
[1751157306887,8.07524261,2440.6,2440.5,4.39646469]
[1751157309886,8.07524261,2440.6,2440.5,1.5282]
[1751157310192,8.07524261,2440.6,2440.5,0.7568]
[1751157310395,8.07524261,2440.6,2440.5,3.62506469]
[1751157313052,8.07524261,2440.6,2440.5,0.7568]
[1751157314190,8.07524261,2440.6,2440.5,3.62506469]
[1751157324822,8.07524261,2440.6,2440.5,0.2068]
[1751157325501,10.94338978,2440.6,2440.5,0.2068]
[1751157325679,10.94338978,2440.6,2440.5,0.002]
[1751157325680,11.91538978,2440.6,2440.5,0.002]
[1751157326281,9.04724261,2440.6,2440.5,0.002]
[1751157327015,11.91538978,2440.6,2440.5,0.002]
[1751157329420,9.04724261,2440.6,2440.5,0.002]
[1751157334421,8.28004261,2440.6,2440.5,0.002]
[1751157335189,8.07524261,2440.6,2440.5,0.002]
[1751157337334,8.07524261,2440.6,2440.5,2.87026469]
[1751157338633,8.07524261,2440.6,2440.5,3.42026469]
[1751157342342,8.07524261,2440.6,2440.5,0.552]
[1751157342755,8.87694261,2440.6,2440.5,0.002]
[1751157343242,8.07524261,2440.6,2440.5,0.002]
[1751157344956,10.94338978,2440.6,2440.5,0.002]
[1751157345439,11.74508978,2440.6,2440.5,0.002]
[1751157350251,8.87694261,2440.6,2440.5,0.002]
[1751157350472,8.07524261,2440.6,2440.5,0.002]
[1751157361473,8.07524261,2440.6,2440.5,2.87026469]
[1751157362571,8.07524261,2440.6,2440.5,0.002]
[1751157372582,5.64183125,2440.6,2440.5,0.002]
[1751157374143,5.64183125,2440.6,2440.5,0.552]
[1751157374349,5.64183125,2440.6,2440.5,3.62506469]
[1751157375989,5.64183125,2440.6,2440.5,0.7568]
[1751157376186,8.50997842,2440.6,2440.5,0.002]
[1751157376489,5.84663125,2440.6,2440.5,0.002]
[1751157386706,8.71477842,2440.6,2440.5,0.002]
[1751157389101,5.84663125,2440.6,2440.5,0.002]
[1751157391230,8.71477842,2440.6,2440.5,0.002]
[1751157391725,5.84663125,2440.6,2440.5,0.002]
[1751157397692,8.71477842,2440.6,2440.5,0.002]
[1751157398695,14.35660967,2440.6,2440.5,0.002]
[1751157398895,9.48337842,2440.6,2440.5,0.002]
[1751157405536,6.61523125,2440.6,2440.5,0.002]
[1751157406430,9.48337842,2440.6,2440.5,0.002]
[1751157406633,6.61523125,2440.6,2440.5,0.002]
[1751157408171,15.12520967,2440.6,2440.5,0.002]
[1751157408431,5.64183125,2440.2,2440.0,0.002]
[1751157409613,5.64183125,2440.2,2440.0,2.87083423]
[1751157411398,11.2836625,2440.2,2440.0,2.87083423]
[1751157413421,11.2836625,2440.2,2440.1,2.86873488]
[1751157415042,11.2836625,2440.2,2440.0,2.87079565]
[1751157417245,11.2836625,2440.2,2440.0,0.002]
[1751157417545,11.2836625,2440.2,2440.0,2.87083266]
[1751157426258,5.64183125,2440.2,2440.1,2.86873488]
[1751157431560,5.64183125,2440.2,2440.0,2.87078778]
[1751157432283,5.64183125,2440.2,2440.1,2.86873488]
[1751157433891,5.64183125,2440.2,2440.0,2.8708062]
[1751157435384,5.64183125,2440.2,2440.0,0.002]
[1751157436165,5.64183125,2440.2,2440.0,2.87085165]
[1751157436991,11.2836625,2440.2,2440.0,2.87085165]
[1751157437285,11.2836625,2440.2,2440.0,0.002]
[1751157438395,11.2836625,2440.2,2440.0,2.87085114]
[1751157440588,5.64183125,2440.2,2440.0,2.87085114]
[1751157460350,5.64183125,2440.2,2440.0,0.002]
[1751157463658,5.64183125,2440.2,2440.0,2.87084842]
[1751157469556,5.64183125,2440.2,2440.0,0.002]
[1751157471988,5.64183125,2440.2,2440.0,2.87085099]
[1751157474783,0.2048,2440.3,2440.1,2.86872931]
[1751157474984,5.64183125,2440.2,2440.1,2.86872931]
[1751157475185,5.64183125,2440.2,2440.1,3.63512931]
[1751157477494,0.2048,2440.5,2440.2,2.86853439]
[1751157477708,5.64183125,2440.3,2440.2,2.86853439]
[1751157478300,5.64183125,2440.3,2440.1,10.79610793]
[1751157480198,5.64183125,2440.3,2440.1,7.9274]
[1751157480497,5.64183125,2440.3,2440.2,2.86861732]
[1751157483888,5.64183125,2440.3,2440.1,10.79607016]
[1751157484399,5.64183125,2440.3,2440.2,2.86861732]
[1751157486000,5.64183125,2440.3,2440.1,7.9274]
[1751157486001,5.64183125,2440.3,2440.1,10.79606962]
[1751157487031,5.64183125,2440.3,2440.2,3.41861732]
[1751157487166,5.64183125,2440.3,2440.2,3.62341732]
[1751157490414,5.64183125,2440.3,2440.2,0.7548]
[1751157490708,5.64183125,2440.3,2440.2,7.3638]
[1751157491274,5.64183125,2440.3,2440.2,0.2048]
[1751157491583,12.0621625,2440.3,2440.0,0.002]
[1751157491781,5.64183125,2440.1,2440.0,6.611]